bitfinex-derivatives/quotes_BTCF0:USTF0_20241023
["timestamp","ask_amount","ask_price","bid_price","bid_amount"]
[1729702936348,0.075953,65879.0,65875.0,0.075957]
[1729702937135,0.2605,65889.0,65875.0,0.26]
[1729702937335,0.2605,65889.0,65883.0,0.075948]
[1729702937336,0.075945,65886.0,65883.0,0.075948]
[1729702938148,0.26,65888.0,65883.0,0.075948]
[1729702938149,0.1243,65889.0,65883.0,0.26]
[1729702938545,0.075941,65890.0,65887.0,0.075944]
[1729702938846,0.07821332,65894.0,65889.0,0.075941]
[1729702939042,0.07594,65891.0,65889.0,0.075941]
[1729702939750,0.00227732,65894.0,65890.0,0.07594]
[1729702939946,0.00227732,65894.0,65886.0,0.07534723]
[1729702940141,0.00227732,65894.0,65891.0,0.075938]
[1729702940336,0.00227732,65894.0,65891.0,0.26]
[1729702940544,0.00227732,65894.0,65893.0,0.075937]
[1729702941353,0.075943,65888.0,65884.0,0.1258]
[1729702941543,0.00227732,65894.0,65878.0,0.10267524]
[1729702941544,0.335945,65886.0,65880.0,0.075951]
[1729702941749,0.26,65886.0,65878.0,0.02732801]
[1729702942055,0.075946,65885.0,65882.0,0.07595]
[1729702942644,0.00227732,65894.0,65878.0,0.26]
[1729702942645,0.075949,65883.0,65878.0,0.075954]
[1729702942843,0.1251,65893.0,65886.0,0.075945]
[1729702942844,0.075941,65890.0,65886.0,0.075945]
[1729702943252,0.075939,65892.0,65886.0,0.26]
[1729702943440,0.075942,65889.0,65881.0,0.26]
[1729702943637,0.26,65887.0,65875.0,0.07534723]
[1729702943841,0.075955,65878.0,65876.0,0.075956]
[1729702944041,0.26,65883.0,65876.0,0.075956]
[1729702944241,0.075954,65879.0,65875.0,0.075957]
[1729702944458,0.075954,65878.0,65875.0,0.075957]
[1729702944645,0.075951,65882.0,65877.0,0.26]
[1729702944840,0.075951,65882.0,65881.0,0.075951]
[1729702945042,0.075946,65885.0,65884.0,0.075947]
[1729702945343,0.075946,65885.0,65878.0,0.075953]
[1729702945537,0.07595,65882.0,65878.0,0.075953]
[1729702945743,0.02709031,65886.0,65875.0,0.075958]
[1729702945744,0.075953,65880.0,65875.0,0.075958]
[1729702945948,0.075953,65880.0,65874.0,0.26]
[1729702946249,0.075948,65884.0,65882.0,0.075949]
[1729702946453,0.200543,65888.0,65886.0,0.075945]
[1729702946855,0.02740509,65891.0,65886.0,0.26]
[1729702947045,0.13864,65895.0,65888.0,0.075941]
[1729702947046,0.075942,65889.0,65888.0,0.075941]
[1729702947656,0.26,65892.0,65884.0,0.075947]
[1729702947842,0.0276925,65893.0,65868.0,0.079115]
[1729702947843,0.26,65888.0,65878.0,0.07550242]
[1729702948043,0.075948,65884.0,65878.0,0.075954]
[1729702948242,0.075948,65884.0,65882.0,0.07595]
[1729702948451,0.075954,65879.0,65877.0,0.07550242]
[1729702948644,0.26,65884.0,65877.0,0.07550242]
[1729702948847,0.075952,65881.0,65880.0,0.075952]
[1729702949050,0.15000716,65881.0,65880.0,0.335952]
[1729702949250,0.23386046,65881.0,65880.0,0.335952]
[1729702949449,0.0838533,65881.0,65880.0,0.335952]
[1729702949944,0.16513947,65881.0,65880.0,0.335952]
[1729702950144,0.0838533,65881.0,65880.0,0.335952]
[1729702950544,0.11205337,65884.0,65880.0,0.595952]
[1729702950751,0.05449842,65888.0,65887.0,0.075944]
[1729702950951,0.07591,65917.0,65887.0,0.335944]
[1729702951158,0.05448702,65910.0,65893.0,0.335937]
[1729702951348,0.075919,65909.0,65893.0,0.335937]
[1729702951546,0.075919,65909.0,65893.0,0.791217]
[1729702951747,0.1308,65911.0,65893.0,0.791217]
[1729702951942,0.1308,65911.0,65904.0,0.075924]
[1729702952146,0.075922,65907.0,65905.0,0.075922]
[1729702952460,0.075933,65897.0,65895.0,0.26]
[1729702952653,0.075933,65897.0,65890.0,0.00227644]
[1729702952654,0.26,65900.0,65894.0,0.075936]
[1729702952951,0.204518,65910.0,65894.0,0.075936]
[1729702952952,0.075935,65896.0,65894.0,0.075936]
[1729702953148,0.075935,65896.0,65895.0,0.075935]
[1729702953753,0.343158,65910.0,65895.0,0.26]
[1729702953754,0.1286,65910.0,65895.0,0.26]
[1729702953957,0.075925,65904.0,65900.0,0.26]
[1729702954255,0.075925,65904.0,65903.0,0.075925]
[1729702954448,0.07593,65901.0,65900.0,0.075928]
[1729702954649,0.26,65903.0,65890.0,0.00227644]
[1729702954847,0.075939,65891.0,65890.0,0.00227644]
[1729702955156,0.335939,65891.0,65890.0,0.00227644]
[1729702955353,0.075952,65880.0,65879.0,0.075952]
[1729702956145,0.075957,65876.0,65875.0,0.075957]
[1729702956444,0.10251444,65879.0,65875.0,0.6048351]
[1729702956645,0.075958,65876.0,65875.0,0.18201948]
[1729702956954,0.17846744,65879.0,65878.0,0.075954]
[1729702957144,0.17846744,65879.0,65878.0,0.19174829]
[1729702957452,0.17846744,65879.0,65878.0,0.59270012]
[1729702957951,0.17846744,65879.0,65878.0,0.5426676]
[1729702958147,0.27466,65895.0,65878.0,0.37579429]
[1729702958351,0.075949,65884.0,65883.0,0.075948]
[1729702958547,0.075949,65884.0,65883.0,0.19174229]
[1729702958948,0.075949,65884.0,65883.0,0.11579429]
[1729702959561,0.210449,65884.0,65883.0,0.07576781]
[1729702959960,0.1345,65884.0,65880.0,0.075952]
[1729702960147,0.210447,65884.0,65883.0,0.07576703]
[1729702960658,0.07595,65882.0,65880.0,0.07576703]
[1729702960955,0.84986,65884.0,65880.0,0.07576703]
[1729702960956,0.075951,65881.0,65880.0,0.07576703]
[1729702961150,0.075957,65876.0,65875.0,0.14094135]
[1729702961355,0.335957,65876.0,65875.0,0.14094135]
[1729702961760,0.791357,65876.0,65875.0,0.14094135]
[1729702962153,0.7154,65876.0,65868.0,0.07576703]
[1729702962352,0.075965,65869.0,65868.0,0.07576703]
[1729702962559,0.075965,65869.0,65867.0,0.15173303]
[1729702962756,0.1317,65868.0,65867.0,0.075966]
[1729702963366,0.1317,65868.0,65867.0,0.26756214]
[1729702963668,0.207666,65868.0,65867.0,0.075966]
[1729702963861,0.207666,65868.0,65867.0,0.20674095]
[1729702964165,0.207666,65868.0,65867.0,0.11582476]
[1729702964557,0.207666,65868.0,65867.0,0.20667994]
[1729702965464,0.207666,65868.0,65867.0,0.11582476]
[1729702965666,0.075962,65872.0,65869.0,0.075964]
[1729702965873,0.075962,65872.0,65871.0,0.07569789]
[1729702966458,0.1269,65876.0,65870.0,0.07569789]
[1729702966654,0.075962,65871.0,65870.0,0.07569789]
[1729702966967,0.075962,65871.0,65869.0,0.07569789]
[1729702967268,0.075962,65871.0,65865.0,0.35085518]
[1729702967269,0.075959,65875.0,65870.0,0.33569789]
[1729702967455,0.075959,65874.0,65871.0,0.07568332]
[1729702967653,0.1269,65876.0,65875.0,0.075958]
[1729702967964,0.075955,65878.0,65875.0,0.075958]
[1729702967965,0.0782288,65882.0,65875.0,0.26]
[1729702968170,0.075951,65881.0,65880.0,0.075952]
[1729702968355,0.075953,65880.0,65876.0,0.15163932]
[1729702968672,0.0022778,65882.0,65875.0,0.07568332]
[1729702968859,0.075955,65877.0,65876.0,0.19149172]
[1729702969164,0.075955,65877.0,65876.0,0.07568332]
[1729702969467,0.075957,65876.0,65873.0,0.07568332]
[1729702969667,0.26,65881.0,65872.0,0.15164332]
[1729702969856,0.26,65881.0,65878.0,0.06053113]
[1729702970368,0.18,65879.0,65878.0,0.06053113]
[1729702970663,0.075954,65878.0,65877.0,0.06053113]
[1729702970871,0.1226013,65878.0,65877.0,0.255955]
[1729702971057,0.1226013,65878.0,65877.0,0.075955]
[1729702971254,0.1226013,65878.0,65870.0,0.075963]
[1729702971255,0.075959,65874.0,65870.0,0.075963]
[1729702971476,0.0466473,65873.0,65870.0,0.075964]
[1729702971768,0.075962,65871.0,65870.0,0.075964]
[1729702972068,0.0466473,65871.0,65870.0,0.255964]
[1729702972273,0.15050904,65895.0,65870.0,1.55404]
[1729702972473,0.22644404,65895.0,65894.0,0.18]
[1729702972675,0.30035994,65902.0,65891.0,0.18]
[1729702972676,0.075938,65892.0,65891.0,0.18]
[1729702972971,0.18,65900.0,65891.0,0.18]
[1729702973168,0.075933,65897.0,65896.0,0.075934]
[1729702973369,0.07593,65899.0,65898.0,0.18]
[1729702973561,0.07593,65899.0,65897.0,0.075932]
[1729702973759,0.075931,65898.0,65897.0,0.075932]
[1729702973960,0.075931,65898.0,65886.0,0.1281]
[1729702973961,0.075938,65893.0,65886.0,0.3081]
[1729702974160,0.15053275,65897.0,65893.0,0.075937]
[1729702974371,0.075936,65894.0,65893.0,0.075937]
[1729702974971,0.15053275,65895.0,65888.0,0.26]
[1729702975275,0.22646875,65894.0,65888.0,0.26]
[1729702975488,0.22646875,65894.0,65893.0,0.075937]
[1729702975662,0.075936,65894.0,65893.0,0.075937]
[1729702975863,0.22646875,65894.0,65893.0,0.075937]
[1729702976767,0.22639674,65894.0,65893.0,0.075937]
[1729702976970,0.075936,65894.0,65893.0,0.075937]
[1729702977167,0.22639615,65894.0,65893.0,0.075937]
[1729702977364,0.12257075,65894.0,65893.0,0.075937]
[1729702977668,0.04663475,65894.0,65893.0,0.075937]
[1729702978468,0.075938,65893.0,65884.0,0.075947]
[1729702978670,0.075945,65887.0,65884.0,0.075947]
[1729702978873,0.42542985,65890.0,65883.0,0.075948]
[1729702978874,0.075945,65886.0,65883.0,0.075948]
[1729702979170,0.075945,65886.0,65884.0,0.075947]
[1729702979379,0.075946,65885.0,65884.0,0.075947]
[1729702980875,0.075951,65881.0,65880.0,0.075951]
[1729702981692,0.075954,65878.0,65877.0,0.0022767]
[1729702982972,0.075954,65878.0,65862.0,0.06053113]
[1729702982973,0.4554,65878.0,65862.0,0.06053113]
[1729702983281,0.02712164,65886.0,65861.0,0.32053113]
[1729702983282,0.075966,65868.0,65861.0,0.32053113]
[1729702983471,0.075966,65868.0,65867.0,0.075967]
[1729702983670,0.075967,65867.0,65866.0,0.26]
[1729702983871,0.075969,65865.0,65864.0,0.07597]
[1729702984580,0.075973,65862.0,65861.0,0.06053113]
[1729702985172,0.075974,65861.0,65858.0,0.075976]
[1729702985367,0.075975,65860.0,65858.0,0.075976]
[1729702986088,0.26,65865.0,65853.0,0.0022775]
[1729702986384,0.13852,65868.0,65853.0,0.0022775]
[1729702986385,0.335982,65854.0,65853.0,0.0022775]
[1729702986579,0.075982,65854.0,65853.0,0.0022775]
[1729702987175,0.075982,65854.0,65852.0,0.06053113]
[1729702987176,0.26,65854.0,65844.0,0.00295]
[1729702987386,0.26,65849.0,65833.0,0.10606727]
[1729702987585,0.26,65844.0,65833.0,0.10606727]
[1729702987885,0.26,65844.0,65839.0,0.075999]
[1729702987886,0.075996,65842.0,65839.0,0.075999]
[1729702988182,0.26,65848.0,65837.0,0.26]
[1729702988389,0.075992,65846.0,65841.0,0.075997]
[1729702988567,0.075989,65849.0,65845.0,0.075991]
[1729702988772,0.26,65846.0,65833.0,0.10606727]
[1729702988979,0.26,65850.0,65836.0,0.26]
[1729702989186,0.075989,65848.0,65845.0,0.075992]
[1729702990183,0.26,65850.0,65833.0,0.10606727]
[1729702990385,0.075952,65880.0,65833.0,0.10606727]
[1729702990386,0.02718421,65860.0,65856.0,0.07598]
[1729702990586,0.075978,65858.0,65849.0,0.26]
[1729702990906,0.13032,65864.0,65853.0,0.26]
[1729702991088,0.26192,65868.0,65857.0,0.075978]
[1729702991387,0.0273157,65870.0,65854.0,0.075982]
[1729702991388,0.40572801,65862.0,65854.0,0.075982]
[1729702991586,0.26,65858.0,65844.0,0.26]
[1729702991780,0.26,65858.0,65842.0,0.00227814]
[1729702991781,0.26,65854.0,65843.0,0.075994]
[1729702991975,0.40572801,65853.0,65843.0,0.075994]
[1729702992183,0.26,65854.0,65840.0,0.22723983]
[1729702992184,0.40572801,65852.0,65840.0,0.22723983]
[1729702992488,0.40572801,65851.0,65850.0,0.075987]
[1729702992874,0.40572801,65851.0,65850.0,0.531547]
[1729702993276,0.12740357,65851.0,65850.0,1.16516195]
[1729702993477,0.075965,65869.0,65850.0,1.16516195]
[1729702993684,0.17190632,65868.0,65867.0,0.075967]
[1729702993889,0.00227792,65883.0,65879.0,0.075953]
[1729702994086,0.00227792,65883.0,65873.0,0.07596]
[1729702994087,0.02895805,65885.0,65884.0,0.075947]
[1729702994280,0.02895805,65889.0,65888.0,0.075943]
[1729702994475,0.07594,65891.0,65888.0,0.11580456]
[1729702994684,0.26,65896.0,65889.0,0.11580456]
[1729702994885,0.075939,65891.0,65890.0,0.11580456]
[1729702995193,0.075939,65891.0,65890.0,0.19174456]
[1729702995396,0.10489705,65891.0,65890.0,0.19174456]
[1729702995585,0.02895805,65891.0,65890.0,0.19174456]
[1729702996190,0.02895805,65891.0,65890.0,0.11580456]
[1729702996191,0.10489705,65891.0,65890.0,0.11580456]
[1729702996589,0.10489705,65891.0,65890.0,0.19174456]
[1729702997092,0.36489705,65891.0,65876.0,0.00227697]
[1729702997388,0.26,65895.0,65877.0,0.21690306]
[1729702997389,0.02895805,65879.0,65877.0,0.21690306]
[1729702997580,0.02895805,65879.0,65878.0,0.14094806]
[1729702998075,0.02895805,65879.0,65878.0,0.21690206]
[1729702998280,0.10491105,65879.0,65878.0,0.21690206]
[1729702998589,0.10491105,65879.0,65878.0,0.14094806]
[1729702999274,0.10491105,65879.0,65878.0,0.21690206]
[1729702999275,0.02895805,65879.0,65878.0,0.21690206]
[1729703000883,0.02688046,65897.0,65878.0,0.21690206]
[1729703000884,0.26,65898.0,65878.0,0.59634497]
[1729703001084,0.26,65898.0,65877.0,0.26]
[1729703001085,0.02895805,65885.0,65884.0,0.26]
[1729703001281,0.02895805,65885.0,65884.0,0.40094497]
[1729703001680,0.02895805,65885.0,65884.0,0.21689197]
[1729703001977,0.02895805,65885.0,65884.0,0.075947]
[1729703002178,0.28895805,65885.0,65876.0,0.00227697]
[1729703002384,0.075952,65881.0,65880.0,0.075952]
[1729703002791,0.075952,65881.0,65876.0,0.00227697]
[1729703002792,0.075953,65879.0,65876.0,0.00227697]
[1729703002982,0.04663911,65878.0,65877.0,0.075955]
[1729703003183,0.04663911,65878.0,65876.0,0.00227697]
[1729703003184,0.07559716,65878.0,65876.0,0.00227697]
[1729703003383,0.15155216,65877.0,65876.0,0.00227697]
[1729703003686,0.04663911,65877.0,65876.0,0.07823397]
[1729703003887,0.24979826,65884.0,65883.0,0.075949]
[1729703004196,0.05449437,65884.0,65883.0,0.335949]
[1729703004383,0.19530389,65890.0,65883.0,0.26]
[1729703004579,0.19530389,65890.0,65889.0,0.075942]
[1729703004796,0.19530389,65899.0,65898.0,0.075931]
[1729703005000,0.19530389,65913.0,65912.0,0.075915]
[1729703005294,0.02895805,65905.0,65898.0,0.00227605]
[1729703005594,0.02895805,65904.0,65903.0,0.075925]
[1729703006094,0.05447725,65912.0,65907.0,0.07592]
[1729703006290,0.02895805,65907.0,65901.0,0.26]
[1729703006591,0.02895805,65907.0,65906.0,0.075922]
[1729703006991,0.10487905,65907.0,65906.0,0.075922]
[1729703008090,0.02895805,65907.0,65906.0,0.075922]
[1729703008787,0.04662171,65907.0,65906.0,0.075922]
[1729703009089,0.19530389,65917.0,65909.0,0.075918]
[1729703009291,0.10487705,65910.0,65909.0,0.075919]
[1729703009593,0.075924,65905.0,65904.0,0.075923]
[1729703010183,0.075924,65905.0,65880.0,0.2482]
[1729703010184,0.28895805,65905.0,65892.0,0.00227607]
[1729703010382,0.02895805,65900.0,65899.0,0.07593]
[1729703010589,0.26,65901.0,65892.0,0.00227607]
[1729703010893,0.02895805,65893.0,65892.0,0.07821407]
[1729703011289,0.02895805,65893.0,65892.0,0.075938]
[1729703013081,0.075934,65896.0,65892.0,0.075938]
[1729703013288,0.02895805,65893.0,65892.0,0.075938]
[1729703013992,0.075926,65903.0,65902.0,0.075926]
[1729703014181,0.075926,65903.0,65902.0,0.335926]
[1729703014388,0.10488405,65903.0,65902.0,0.075926]
[1729703014988,0.02895805,65903.0,65902.0,0.075926]
[1729703015196,0.10488305,65903.0,65902.0,0.075926]
[1729703015901,0.02895805,65903.0,65902.0,0.335926]
[1729703016597,0.00227663,65907.0,65902.0,0.335926]
[1729703016598,0.00227663,65907.0,65906.0,0.075922]
[1729703016894,0.00227663,65907.0,65906.0,0.335922]
[1729703016895,0.03123468,65907.0,65906.0,0.335922]
[1729703017096,0.00196,65935.0,65906.0,0.335922]
[1729703017097,0.075901,65924.0,65906.0,1.3152]
[1729703017297,0.075901,65924.0,65923.0,0.335902]
[1729703017298,0.02895805,65924.0,65923.0,0.335902]
[1729703020914,0.10485905,65924.0,65923.0,0.335902]
[1729703021387,0.075907,65920.0,65919.0,0.075907]
[1729703021589,0.075907,65920.0,65904.0,0.075924]
[1729703021590,0.075915,65913.0,65912.0,0.075914]
[1729703021993,0.10487305,65913.0,65906.0,0.26]
[1729703022300,0.10487705,65909.0,65902.0,0.26]
[1729703022501,0.10487705,65909.0,65898.0,0.26]
[1729703022894,0.10487705,65909.0,65906.0,0.075921]
[1729703023204,0.10487705,65909.0,65902.0,0.26]
[1729703023600,0.10487705,65909.0,65903.0,0.075925]
[1729703023995,0.20598336,65909.0,65896.0,0.26]
[1729703024197,0.69470631,65909.0,65887.0,0.26]
[1729703024408,0.02895805,65891.0,65890.0,0.07594]
[1729703024596,0.07558322,65891.0,65883.0,0.26]
[1729703024799,0.075943,65888.0,65887.0,0.075944]
[1729703025104,0.10110631,65888.0,65887.0,0.335944]
[1729703025301,0.17704931,65888.0,65887.0,0.335944]
[1729703025604,0.13006436,65888.0,65887.0,0.335944]
[1729703026507,0.20600736,65888.0,65887.0,0.335944]
[1729703027298,0.13006436,65888.0,65887.0,0.335944]
[1729703027897,0.20600736,65888.0,65887.0,0.335944]
[1729703028512,0.13006436,65888.0,65887.0,0.335944]
[1729703029006,0.1300729,65888.0,65887.0,0.335944]
[1729703030102,0.2060159,65888.0,65887.0,0.335944]
[1729703030500,0.1300729,65888.0,65887.0,0.335944]
[1729703032108,0.075942,65889.0,65887.0,0.335944]
[1729703032109,0.05168488,65889.0,65888.0,0.075943]
[1729703032406,0.05168488,65889.0,65888.0,0.19172399]
[1729703033898,0.075938,65893.0,65892.0,0.075937]
[1729703034100,0.075938,65893.0,65892.0,0.335937]
[1729703034502,0.1335,65894.0,65892.0,0.335937]
[1729703034503,0.1335,65894.0,65893.0,0.075937]
[1729703034700,0.075937,65893.0,65891.0,0.07561616]
[1729703034898,0.075937,65893.0,65884.0,0.07562866]
[1729703035110,0.335946,65885.0,65884.0,0.07562866]
[1729703035308,0.335946,65885.0,65878.0,0.075954]
[1729703035810,0.075959,65874.0,65873.0,0.07823725]
[1729703035998,0.075959,65874.0,65873.0,0.11808393]
[1729703036201,0.075959,65874.0,65873.0,0.00227725]
[1729703036610,0.206959,65874.0,65873.0,0.00227725]
[1729703037515,0.662359,65874.0,65873.0,0.04760369]
[1729703037708,0.922359,65874.0,65857.0,0.26]
[1729703037909,0.07597,65865.0,65860.0,0.075975]
[1729703038104,0.07597,65865.0,65857.0,0.26]
[1729703038306,0.07597,65865.0,65862.0,0.075973]
[1729703038498,0.26,65868.0,65865.0,0.075969]
[1729703038704,0.335967,65868.0,65865.0,0.075969]
[1729703039715,0.335967,65868.0,65857.0,0.26]
[1729703039716,0.075967,65868.0,65857.0,0.26]
[1729703040103,0.075967,65868.0,65864.0,0.07597]
[1729703040506,0.075967,65867.0,65864.0,0.07597]
[1729703040704,0.26,65867.0,65859.0,0.075975]
[1729703040906,0.125,65873.0,65844.0,0.26]
[1729703040907,0.26,65859.0,65844.0,0.26]
[1729703041203,0.26,65850.0,65849.0,0.075988]
[1729703041402,0.26,65859.0,65844.0,0.26]
[1729703041614,0.26,65859.0,65856.0,0.075979]
[1729703042003,0.335977,65859.0,65856.0,0.075979]
[1729703042204,0.335977,65859.0,65857.0,0.075979]
[1729703042412,0.26,65864.0,65848.0,0.26]
[1729703042709,0.26,65867.0,65856.0,0.26]
[1729703042906,0.26,65863.0,65851.0,0.26]
[1729703043308,0.26,65863.0,65860.0,0.075975]
[1729703043601,0.13848,65871.0,65862.0,0.075973]
[1729703043801,0.26,65868.0,65855.0,0.26]
[1729703044009,0.02792991,65873.0,65870.0,0.075962]
[1729703044204,0.46696,65874.0,65870.0,0.075962]
[1729703044408,0.46696,65874.0,65859.0,0.26]
[1729703044409,0.391,65874.0,65859.0,0.26]
[1729703044610,0.02740417,65878.0,65872.0,0.26]
[1729703044815,0.00227762,65879.0,65878.0,0.075954]
[1729703045206,0.00227762,65879.0,65878.0,0.531354]
[1729703045406,0.00227762,65879.0,65878.0,0.55879525]
[1729703046117,0.26,65879.0,65878.0,0.075954]
[1729703046313,0.26,65879.0,65864.0,0.26227753]
[1729703046518,0.075956,65877.0,65874.0,0.075958]
[1729703046710,0.075958,65875.0,65874.0,0.075958]
[1729703047020,0.075958,65875.0,65864.0,0.28997071]
[1729703047021,0.07595,65882.0,65870.0,0.075963]
[1729703047317,0.075969,65865.0,65864.0,0.00227753]
[1729703047721,0.07596,65873.0,65866.0,0.075968]
[1729703047722,0.075965,65869.0,65866.0,0.075968]
[1729703048022,0.075967,65867.0,65866.0,0.075968]
[1729703048312,0.075969,65865.0,65864.0,0.00227753]
[1729703048516,0.075969,65865.0,65864.0,0.07824753]
[1729703049711,0.075969,65865.0,65864.0,0.00227753]
[1729703050619,0.531449,65865.0,65864.0,0.00227753]
[1729703050937,0.531449,65865.0,65847.0,0.06023009]
[1729703051123,0.075987,65850.0,65847.0,0.13622009]
[1729703051330,0.26,65852.0,65846.0,0.06023009]
[1729703051509,0.075982,65854.0,65851.0,0.075985]
[1729703051911,0.075983,65853.0,65851.0,0.075985]
[1729703052312,0.26,65856.0,65848.0,0.06023009]
[1729703052313,0.02724293,65866.0,65857.0,0.075978]
[1729703052620,0.075976,65859.0,65858.0,0.075977]
[1729703052918,0.075971,65864.0,65857.0,0.26]
[1729703053115,0.075971,65864.0,65861.0,0.075973]
[1729703053317,0.335971,65864.0,65855.0,0.075981]
[1729703053513,0.26,65864.0,65855.0,0.06023009]
[1729703053712,0.02681584,65869.0,65848.0,0.26]
[1729703053713,0.26,65860.0,65856.0,0.075979]
[1729703053913,0.075976,65859.0,65854.0,0.06023009]
[1729703054118,0.07598,65856.0,65855.0,0.07598]
[1729703054513,0.075983,65854.0,65852.0,0.075984]
[1729703054917,0.075983,65854.0,65852.0,0.075983]
[1729703055223,0.075979,65857.0,65856.0,0.075978]
[1729703055619,0.26,65860.0,65852.0,0.075984]
[1729703055822,0.26,65856.0,65842.0,0.26227762]
[1729703056125,0.075985,65852.0,65850.0,0.075986]
[1729703056819,0.075986,65851.0,65849.0,0.075988]
[1729703057021,0.075986,65851.0,65850.0,0.075987]
[1729703057524,0.136,65855.0,65854.0,0.075982]
[1729703057525,0.211981,65855.0,65854.0,0.075982]
[1729703057822,0.075989,65849.0,65848.0,0.075988]
[1729703058823,0.075991,65847.0,65846.0,0.07599]
[1729703059217,0.075986,65851.0,65850.0,0.075987]
[1729703059622,0.075986,65851.0,65842.0,0.00227762]
[1729703059623,0.26,65851.0,65842.0,0.00227762]
[1729703059925,0.1315,65854.0,65842.0,0.00227762]
[1729703059926,0.3915,65854.0,65842.0,0.00227762]
[1729703060221,0.26,65853.0,65842.0,0.00227762]
[1729703060423,0.075989,65848.0,65846.0,0.07599]
[1729703060627,0.075989,65848.0,65843.0,0.075995]
[1729703060817,0.075976,65860.0,65844.0,0.26]
[1729703061019,0.075977,65858.0,65857.0,0.075978]
[1729703061216,0.075977,65858.0,65845.0,0.075992]
[1729703061217,0.26,65858.0,65845.0,0.075992]
[1729703061422,0.075982,65854.0,65853.0,0.075983]
[1729703062020,0.075982,65854.0,65853.0,0.33284849]
[1729703062220,0.26,65860.0,65853.0,0.25686549]
[1729703062423,0.07598,65856.0,65855.0,0.075981]
[1729703062620,0.07598,65856.0,65855.0,0.33284649]
[1729703062930,0.26,65860.0,65855.0,0.25686549]
[1729703063130,0.075976,65859.0,65858.0,0.075976]
[1729703063430,0.075976,65859.0,65858.0,0.33284149]
[1729703063828,0.15883921,65868.0,65858.0,0.25686549]
[1729703064020,0.075967,65867.0,65866.0,0.09079612]
[1729703064220,0.075967,65867.0,65866.0,0.2568382]
[1729703064440,0.1315,65868.0,65866.0,0.25682505]
[1729703064621,0.1315,65868.0,65867.0,0.25682574]
[1729703064817,0.207466,65868.0,65867.0,0.25682574]
[1729703065625,1.18694,65868.0,65851.0,0.10591884]
[1729703065831,0.075992,65846.0,65845.0,0.075992]
[1729703066026,0.335991,65846.0,65845.0,0.35751322]
[1729703066342,0.335991,65846.0,65845.0,0.16617609]
[1729703067735,0.335991,65846.0,65843.0,0.075994]
[1729703067736,0.075994,65844.0,65843.0,0.075994]
[1729703067936,0.075994,65844.0,65843.0,0.24217928]
[1729703068436,0.207876,65860.0,65850.0,0.075986]
[1729703068437,0.075986,65851.0,65850.0,0.075986]
[1729703068632,0.075986,65851.0,65850.0,0.24217128]
[1729703069236,0.335986,65851.0,65850.0,0.07574778]
[1729703070639,0.335986,65851.0,65850.0,0.15173478]
[1729703070822,0.335986,65851.0,65850.0,0.07574778]
[1729703071028,0.335986,65851.0,65850.0,0.15173478]
[1729703071633,0.26,65868.0,65854.0,0.075982]
[1729703071836,0.075975,65862.0,65861.0,0.075974]
[1729703072136,0.075975,65862.0,65861.0,0.06059428]
[1729703072331,0.075975,65862.0,65861.0,0.13656125]
[1729703072528,0.075975,65862.0,65861.0,0.075974]
[1729703072835,0.075973,65862.0,65861.0,0.06058986]
[1729703073043,0.26,65864.0,65860.0,0.06058986]
[1729703073237,0.26,65861.0,65857.0,0.075978]
[1729703073458,0.075977,65858.0,65857.0,0.075978]
[1729703073626,0.075977,65858.0,65857.0,0.15172578]
[1729703074030,0.075977,65858.0,65857.0,0.075978]
[1729703074635,0.075977,65858.0,65857.0,0.15172578]
[1729703075036,0.075977,65858.0,65857.0,0.075978]
[1729703075335,0.07598,65856.0,65855.0,0.07574778]
[1729703075637,0.075983,65854.0,65853.0,0.075983]
[1729703076445,0.26,65856.0,65855.0,0.075981]
[1729703076736,0.33598,65856.0,65855.0,0.16698533]
[1729703076943,0.075976,65859.0,65858.0,0.075976]
[1729703078243,0.075973,65863.0,65862.0,0.075971]
[1729703078835,0.02788258,65868.0,65855.0,0.075981]
[1729703079151,0.00192,65869.0,65868.0,0.075966]
[1729703079337,0.002278,65870.0,65869.0,0.075965]
[1729703079538,0.075954,65879.0,65878.0,0.075954]
[1729703079744,0.1131689,65879.0,65878.0,0.075954]
[1729703080134,0.0372149,65879.0,65878.0,0.075954]
[1729703080335,0.13563941,65890.0,65881.0,0.075951]
[1729703080542,0.3989,65897.0,65883.0,0.26]
[1729703080735,0.075944,65887.0,65886.0,0.075944]
[1729703081246,0.075941,65890.0,65889.0,0.075942]
[1729703081844,0.075945,65887.0,65886.0,0.075945]
[1729703082042,0.26,65892.0,65889.0,0.075941]
[1729703082445,0.075941,65890.0,65889.0,0.075941]
[1729703083043,0.26,65892.0,65889.0,0.075941]
[1729703083346,0.07821422,65893.0,65892.0,0.075938]
[1729703083545,0.26227722,65893.0,65885.0,0.075946]
[1729703083848,0.075949,65883.0,65874.0,0.075958]
[1729703084051,0.075948,65884.0,65882.0,0.075949]
[1729703084349,0.075948,65884.0,65873.0,0.1189]
[1729703084350,0.26,65888.0,65880.0,0.075952]
[1729703084538,0.1294,65892.0,65879.0,0.26]
[1729703084733,0.075949,65884.0,65883.0,0.075948]
[1729703085141,0.26,65884.0,65873.0,0.14613162]
[1729703085342,0.075952,65881.0,65880.0,0.075952]
[1729703086157,0.26,65883.0,65864.0,0.00227721]
[1729703086452,0.075969,65865.0,65864.0,0.00227721]
[1729703086751,0.335969,65865.0,65864.0,0.00227721]
[1729703087147,0.075969,65865.0,65864.0,0.00227721]
[1729703087343,0.075973,65862.0,65861.0,0.075973]
[1729703087749,0.07597,65865.0,65858.0,0.075977]
[1729703087945,0.075944,65888.0,65862.0,0.075973]
[1729703087946,0.075968,65867.0,65862.0,0.075973]
[1729703088151,0.075968,65867.0,65853.0,0.16539076]
[1729703088152,0.075969,65865.0,65864.0,0.075969]
[1729703088349,0.26,65874.0,65858.0,0.26]